Cogmind - Beta 17 *** ADVENTURER MODE // 2026.07.29 @ 15:00:21 Player: ChrisPBacon Result: Self-destructed Performance ------------- Evolutions (4) 2000 Regions Visited (5) 1000 Robots Destroyed (26) 130 Value Destroyed (1029) 1029 Prototype IDs (32) 640 Alien Tech Used (0) 0 Bonus (208) 208 TOTAL SCORE: 5007 Bonus ------- Registered with UFD 300 Friendly Fire -92 Cogmind --------- Core Integrity 98/850 Matter 300/300 Energy 84/100 System Corruption 3% Temperature Cool (0) Movement Walking (120) Location -6/Extension Parts ------- > --- POWER (1) -------- (None) > --- PROPULSION (5) --- Carbon-fiber Leg Carbon-fiber Leg Carbon-fiber Leg Armored Leg > --- UTILITY (7) ------ Improved Heat Sink Improved Heat Sink Advanced Heat Sink Signal Interpreter > --- WEAPON (2) ------- Ripper Companion Sword > --- INVENTORY (5) ---- Carbon-fiber Leg Carbon-fiber Leg A0-MCA's Component Scanner Heavy Laser Peak State ------------ > --- POWER ------------ Light Fission Core > --- PROPULSION ------- Improved Aluminum Leg Carbon-fiber Leg Carbon-fiber Leg Improved Carbon-fiber Leg Armored Leg > --- UTILITY ---------- Improved Heat Sink Advanced Weight Redist. System Machine Analyzer Phase Shifter Medium Armor Plating Improved Light Armor Plating Self-contained Transmogrifier > --- WEAPON ----------- Gauss Rifle Companion Sword > --- INVENTORY -------- Signal Interpreter Improved Terrain Scanner A0-MCA's Component Scanner Gauss Rifle [Rating: 61] Favorites ----------- Power Light Fission Core Engine Improved Ion Engine Power Core Light Fission Core Reactor Reinforced Quantum Reactor Propulsion Light Treads Treads Light Treads Leg Carbon-fiber Leg Flight Unit VTOL Module Utility Self-contained Transmogrifier Device Self-contained Transmogrifier Storage Small Storage Unit Processor Machine Analyzer Hackware Hacking Suite Protection Improved Light Armor Plating Weapon Autogun Energy Gun Pulse Rifle Ballistic Gun Autogun Ballistic Cannon Bore Cannon Launcher Improved Proton Missile Launcher Special Weapon Junk Cannon Slashing Weapon Companion Sword Build | -11 -10 -10 -8 -6 -6 ------- Run | Yrd Mat Sub Scr Fac Ext Slots Evolved 8 | . . . . 8 . Power . | . . . . . . Propulsion 3 | . . . . 3 . Utility 5 | . . . . 5 . Weapon . | . . . . . . Parts Attached 57 | 7 3 4 8 23 12 Power 10 | 1 1 1 1 3 3 Engine 4 | 1 1 . 1 1 . Core 6 | . . 1 . 2 3 Reactor . | . . . . . . Propulsion 15 | 2 . . 3 6 4 Treads 4 | 2 . . 1 1 . Leg 8 | . . . . 5 3 Wheel . | . . . . . . Hover . | . . . . . . Flight 3 | . . . 2 . 1 Utility 17 | 2 . 1 . 10 4 Device 11 | 1 . 1 . 6 3 Storage 1 | 1 . . . . . Processor 3 | . . . . 2 1 Hackware 1 | . . . . 1 . Protection 1 | . . . . 1 . Artifact . | . . . . . . Weapon 15 | 2 2 2 4 4 1 Energy Gun 3 | 1 . 1 1 . . Energy Cannon . | . . . . . . Ballistic Gun 7 | 1 2 1 . 3 . Ballistic Cannon . | . . . . . . Launcher 2 | . . . 1 1 . Special Weapon 1 | . . . 1 . . Impact Weapon . | . . . . . . Slashing Weapon 2 | . . . 1 . 1 Piercing Weapon . | . . . . . . Special Melee Weapon . | . . . . . . Unidentified Prototypes 6 | . . 1 2 3 . Parts Lost 13 | . . . . 8 5 Power 3 | . . . . 1 2 Propulsion 4 | . . . . 3 1 Utility 5 | . . . . 3 2 Weapon 1 | . . . . 1 . Highest Loss Streak 2 | . . . . 2 2 To Critical Strikes . | . . . . . . Average Backups 5 | . 3 7 7 3 2 Power . | . 1 1 . . . Propulsion 1 | . . 2 1 . 1 Utility 2 | . . 1 2 2 1 Weapon 2 | . 1 2 3 . . Tool/Special . | . . . . . . Unused Backups 6 | . . . 1 . 5 Power . | . . . . . . Propulsion 3 | . . . . . 3 Utility 1 | . . . . . 1 Weapon 2 | . . . 1 . 1 Tool/Special . | . . . . . . Average Slot Usage (%) 85 | . 100 99 90 72 58 Engine 6 | . 14 6 10 . . Core 3 | . . . 2 5 4 Reactor 1 | . . 6 . . . Treads 16 | . 28 27 21 3 . Leg 3 | . . . . 10 18 Flight 4 | . . . 3 9 3 Device 16 | . 14 14 14 24 12 Storage 8 | . 14 13 12 . . Energy Gun 7 | . 2 12 11 . . Ballistic Gun 5 | . 25 16 . 4 . Ballistic Cannon 2 | . . . 6 . . Launcher 1 | . . . 3 . . Slashing Weapon 1 | . . . . 2 10 Peak Build Rating 61 | 9 11 34 41 61 46 Average Rating 30 | 5 10 20 28 45 34 On Entrance 12 | . 9 11 29 21 5 Avg Prop Armor Cover (%) 12 | . . . . 14 3 Naked Turns 4 | . . . . 4 . Heaviest Build 42 | 13 17 42 41 27 24 Greatest Support 86 | 40 40 46 75 86 61 Greatest Overweight (x) 1 | . . 1 . 1 . Average Overweight (x) . | . . . . . . Largest Inventory Capacity 8 | 8 8 8 8 5 5 Average Capacity 6 | 7 8 8 7 5 5 Most Carried 8 | 1 6 8 8 5 5 Average Carried 5 | . 3 7 7 3 2 Final Capacity 8 | 8 8 8 5 5 5 Final Carried 8 | 1 6 8 4 5 4 Transmogrified Parts 42 | . . 5 21 16 . Integrity Recovered 494 | . . 119 152 223 . Class Distribution -------------------- 82% | Mutant 14% | Scavenger-Mutant Dominant Class ---------------- Mutant | -10/Materials Mutant | -10/Subcaves Mutant | -8/Scraptown Mutant | -6/Factory Scavenger-Mutant | -6/Extension Resources | -11 -10 -10 -8 -6 -6 ----------- Run | Yrd Mat Sub Scr Fac Ext Matter Collected 1310 | 244 108 196 30 579 153 Remotely . | . . . . . . Salvage Created 1062 | 41 144 144 . 507 226 Parts 51 | 5 5 6 . 24 11 Haulers Intercepted . | . . . . . . Recyclers Shooed 1 | 1 . . . . . Parts Field Recycled . | . . . . . . Retrieved Matter . | . . . . . . Parts Self-Destructed 8 | . . 8 . . . Prevented . | . . . . . . Parts Restored . | . . . . . . Kills | -11 -10 -10 -8 -6 -6 ------- Run | Yrd Mat Sub Scr Fac Ext Combat Hostiles Destroyed 24 | . 3 3 . 12 6 Melee 13 | . . . . 7 6 Guns 10 | . 3 3 . 4 . AOE 1 | . . . . 1 . Classes Destroyed 8 | 1 1 1 . 5 . Tunneler 2 | 2 . . . . . Swarmer 7 | . . . . 3 4 Grunt 6 | . 3 . . 1 2 Duelist 1 | . . . . 1 . Sentry 2 | . . . . 2 . Hunter 1 | . . . . 1 . Programmer 3 | . . . . 3 . Subdweller 3 | . . 3 . . . Thug 1 | . . . . 1 . Best Kill Streak 3 | 1 3 2 . 3 3 Combat Bots Only 3 | . 3 2 . 3 3 Max Kills in Single Turn 2 | 1 2 1 . 2 1 Gunslinging 1 | . 1 . . 1 . Exploded 1 | . . . . 1 . Melee 1 | . . . . 1 1 Uniques/NPCs Destroyed . | . . . . . . Combat | -11 -10 -10 -8 -6 -6 -------- Run | Yrd Mat Sub Scr Fac Ext Hostile Shots Fired 412 | . 16 20 . 229 147 Missed 149 | . 6 2 . 75 66 Hits 263 | . 10 18 . 154 81 Melee 2 | . . . . 2 . Projectile 261 | . 10 18 . 152 81 AOE 2 | . . . . 2 . Critical Strikes 4 | . . 1 . 2 1 Part Disruptions 3 | . . . . 3 . Damage Taken 2876 | . 82 286 . 1811 697 Core 793 | . 8 33 . 635 117 Absorbed by Shields . | . . . . . . Ignored by Resistances 840 | . 26 80 . 523 211 Core Remaining (%) 91 | 100 . . 83 . . Volleys Fired 56 | 6 10 15 . 25 . Largest 2 | 2 2 2 . 2 . Hottest 83 | 70 46 83 . 58 . Shots Fired 102 | 12 20 30 . 40 . Gun 95 | 12 20 30 . 33 . Cannon . | . . . . . . Launcher 7 | . . . . 7 . Special . | . . . . . . Kinetic 84 | 6 20 25 . 33 . Thermal 8 | 6 . 2 . . . Explosive 7 | . . . . 7 . Electromagnetic 3 | . . 3 . . . Robot Hit Streak 31 | 3 9 31 . 12 . Robot Miss Streak 2 | 1 2 1 . 2 . Penetration Max 1 | . . . . 1 . Secondary Targets 3 | . 1 1 . 1 . Max Gunslinging Chain 1 | . 1 1 . 1 . Shots Hit Robots 112 | 7 15 24 . 54 12 Core Hits 40 | 3 4 6 . 22 5 Critical Kills 1 | . . . . 1 . Critical Parts Destroyed . | . . . . . . Critical Strikes 9 | 2 . . . 5 2 Burn 2 | 2 . . . . . Destroy 1 | . . . . 1 . Melee Attacks 46 | . . . . 34 12 Impact . | . . . . . . Slashing 46 | . . . . 34 12 Piercing . | . . . . . . Sneak Attacks . | . . . . . . Combat Hostiles . | . . . . . . Follow-up Attacks 1 | . . . . . 1 Damage Inflicted 3012 | 92 243 373 . 1833 471 Guns 1254 | 92 243 373 . 546 . Cannons . | . . . . . . Explosions 321 | . . . . 321 . Melee 1427 | . . . . 956 471 Ramming 10 | . . . . 10 . Kinetic 1175 | 53 243 333 . 546 . Thermal 39 | 39 . . . . . Explosive 321 | . . . . 321 . Electromagnetic 40 | . . 40 . . . Impact . | . . . . . . Slashing 1427 | . . . . 956 471 Piercing . | . . . . . . Highest Corruption 3 | . . . . 3 3 Average Corruption 1 | . . . . 1 3 Corruption Purged . | . . . . . . Corruption Blocked . | . . . . . . Effects 11 | . . . . 5 6 Message Errors 5 | . . . . 2 3 Matter Fused 4 | . . . . 2 2 Data Loss (major) 1 | . . . . 1 . Alerts 1 | . . . . . 1 Overload Shots . | . . . . . . Overflow Damage 116 | . . . . 90 26 Projectiles . | . . . . . . Explosions 15 | . . . . 15 . Melee 101 | . . . . 75 26 Knockbacks . | . . . . . . Impact . | . . . . . . Kinetic . | . . . . . . Secondary . | . . . . . . Self-Inflicted Damage 4 | . . . . 4 . Shots . | . . . . . . Rammed 2 | . . . . 2 . Targets Rammed 2 | . . . . 2 . Kicked . | . . . . . . Crushed . | . . . . . . Highest Temperature 28 | 27 28 22 . . . Average Temperature 10 | 11 10 8 . . . Received Heat Transfer 615 | . 60 72 . 243 240 Siege Activations . | . . . . . . Martial Activations . | . . . . . . Shielding Activations . | . . . . . . Robots Disrupted . | . . . . . . Combat Hostiles . | . . . . . . Robots Corrupted . | . . . . . . Combat Hostiles . | . . . . . . Parts Fried . | . . . . . . Impact Corruptions . | . . . . . . Robots Melted . | . . . . . . Combat Hostiles . | . . . . . . Parts Melted 2 | 1 . 1 . . . Heat Transferred 259 | 259 . . . . . Parts Sabotaged 1 | . . . . 1 . Parts Stolen . | . . . . . . Parts Stripped . | . . . . . . Power Chain Reactions . | . . . . . . Alert | -11 -10 -10 -8 -6 -6 ------- Run | Yrd Mat Sub Scr Fac Ext Maximum Alert Level . | . . . . . . Low Security (%) 100 | 100 100 . . 100 100 Level 1 . | . . . . . . Level 2 . | . . . . . . Level 3 . | . . . . . . Level 4 . | . . . . . . Level 5 . | . . . . . . High Security . | . . . . . . Max Security . | . . . . . . Peak Influence 70 | 5 70 . . 63 55 Initial . | . . . . . . Average 14 | 1 17 . . 13 23 Influence Increases 647 | 10 70 . . 377 190 Destroy 0b10 Robot/C 420 | . 60 . . 240 120 Destroy 0b10 Robot/NC 10 | 10 . . . . . Destroy Leader 90 | . 10 . . 70 10 Successful Hack 14 | . . . . 14 . Destroy Structure 23 | . . . . 23 . Lose Combat Pursuer 90 | . . . . 30 60 Influence Decreases 632 | 10 40 30 . 374 178 Entered New Map 20 | . . 17 . . 3 Time Decay 514 | 10 40 13 . 341 110 Lost Part 63 | . . . . 33 30 Lost Ally 35 | . . . . . 35 Squads Dispatched 6 | . 1 . . 5 . Investigation 2 | . 1 . . 1 . Extermination 3 | . . . . 3 . Reinforcement 1 | . . . . 1 . Assault . | . . . . . . Garrison . | . . . . . . Intercept . | . . . . . . Searches Triggered . | . . . . . . Construction Impeded . | . . . . . . Haulers Reinforced . | . . . . . . Active Scanning Responses . | . . . . . . Cargo Convoy Interrupts 1 | . . . . 1 . Stealth | -11 -10 -10 -8 -6 -6 --------- Run | Yrd Mat Sub Scr Fac Ext Distress Signals 4 | . . . . 3 1 Communications Jammed . | . . . . . . Distress Signals . | . . . . . . Times Spotted 57 | . 6 3 . 33 15 Peak Tracking Total 9 | . 5 2 . 9 5 Tactical Retreats 4 | . . . . 2 2 Traps | -11 -10 -10 -8 -6 -6 ------- Run | Yrd Mat Sub Scr Fac Ext Traps Triggered 5 | . . . . 5 . Indirectly . | . . . . . . Trap Hack Attempts . | . . . . . . Triggered . | . . . . . . Disarmed . | . . . . . . Reprogrammed . | . . . . . . Reused . | . . . . . . Traps Extracted . | . . . . . . Installed . | . . . . . . Triggered . | . . . . . . Machines | -11 -10 -10 -8 -6 -6 ---------- Run | Yrd Mat Sub Scr Fac Ext Machines Disabled 1 | . . 1 . . . Max in Single Turn 1 | . . 1 . . . Machines Repaired . | . . . . . . Machines Dismantled . | . . . . . . Machines Sabotaged . | . . . . . . Overloaded Fab Kills . | . . . . . . Hacking | -11 -10 -10 -8 -6 -6 --------- Run | Yrd Mat Sub Scr Fac Ext Machines Accessed 19 | . 2 2 8 7 . Terminals 5 | . 2 . . 3 . Fabricators 1 | . . . . 1 . Repair Stations . | . . . . . . Recycling Units 3 | . . . . 3 . Scanalyzers . | . . . . . . Garrison Access . | . . . . . . Total Hacks 54 | . 6 13 24 11 . Successful 42 | . 1 13 24 4 . Failed 12 | . 5 . . 7 . Catastrophic 4 | . 1 . . 3 . Database Lockouts . | . . . . . . Manual 4 | . 3 . . 1 . Terminals 10 | . 6 . . 4 . Fabricators 1 | . . . . 1 . Repair Stations . | . . . . . . Recycling Units 6 | . . . . 6 . Scanalyzers . | . . . . . . Garrison Access . | . . . . . . Terminal Hacks 40 | . 1 13 24 2 . Record 30 | . . 12 18 . . Robot Analysis 4 | . . . 4 . . Prototype ID Bank 1 | . 1 . . . . Open Door 2 | . . . 1 1 . Registered Components 1 | . . . . 1 . Proto ID Catalog 2 | . . 1 1 . . Fabricator Hacks 1 | . . . . 1 . Network Status 1 | . . . . 1 . Repair Station Hacks . | . . . . . . Recycling Unit Hacks 1 | . . . . 1 . Retrieve Components 1 | . . . . 1 . Scanalyzer . | . . . . . . Garrison Access Hacks . | . . . . . . Unauthorized Hacks . | . . . . . . Terminals . | . . . . . . Fabricators . | . . . . . . Repair Stations . | . . . . . . Recycling Units . | . . . . . . Scanalyzers . | . . . . . . Garrison Access . | . . . . . . Data Cores Recovered . | . . . . . . Used . | . . . . . . Hacking Detections 6 | . 2 . . 4 . Full Trace Events . | . . . . . . Feedback Events . | . . . . . . Feedback Blocked . | . . . . . . Robot Schematics Acquired . | . . . . . . Robots Built . | . . . . . . Authchips . | . . . . . . Time . | . . . . . . Total Robot Build Rating . | . . . . . . Part Schematics Acquired . | . . . . . . Parts Built . | . . . . . . Authchips . | . . . . . . Time . | . . . . . . Total Part Build Rating . | . . . . . . Part Studies Acquired . | . . . . . . Parts Repaired . | . . . . . . Time . | . . . . . . Parts Recycled . | . . . . . . Recycled Matter . | . . . . . . Retrieved Matter . | . . . . . . Retrieved Components 1 | . . . . 1 . Parts Scanalyzed . | . . . . . . Part Schematics Acquired . | . . . . . . Parts Damaged . | . . . . . . Bothacking | -11 -10 -10 -8 -6 -6 ------------ Run | Yrd Mat Sub Scr Fac Ext Used RIF Installer . | . . . . . . Robots Hacked . | . . . . . . Non-combat . | . . . . . . Combat . | . . . . . . Robot Hacks Applied . | . . . . . . Relay Couplers Released . | . . . . . . Fabnet Peak Effective % . | . . . . . . Robots Rewired 3 | . . . . . 3 Allies Hacked . | . . . . . . Hacks Repelled . | . . . . . . Allies | -11 -10 -10 -8 -6 -6 -------- Run | Yrd Mat Sub Scr Fac Ext Total Allies 3 | . . . . . 3 Largest Group 2 | . . . . . 2 Highest-Rated Group 56 | . . . . . 56 Highest-Rated Ally 31 | . . . . . 31 Initial UFD Resources 23 | . . . . 23 23 Total Orders . | . . . . . . Ally Attacks 8 | . . . . . 8 Total Damage 112 | . . . . . 112 Kills . | . . . . . . Allies Corrupted . | . . . . . . Allies Melted . | . . . . . . Intel | -11 -10 -10 -8 -6 -6 ------- Run | Yrd Mat Sub Scr Fac Ext Active Infowar (turns) 1667 | 13 252 464 17 903 18 Optics 62 | . . . . 62 . Sensors 347 | . . . . 347 . Terrain 961 | 13 252 464 17 197 18 Machine Analysis 361 | . . . . 361 . Robot Analysis Total 4 | . . . 4 . . Derelict Logs Recovered 2 | . . 2 . . . Drone Launches . | . . . . . . Drone Recoveries . | . . . . . . Exploration | -11 -10 -10 -8 -6 -6 ------------- Run | Yrd Mat Sub Scr Fac Ext Turns Passed 5019 | 113 252 909 2154 1279 312 Spaces Moved 2922 | 57 135 483 1044 997 206 Core 124 | 6 . . . 113 5 Treads 1668 | 51 135 483 964 35 . Legs 605 | . . . . 404 201 Wheels . | . . . . . . Hover . | . . . . . . Flight 525 | . . . 80 445 . Fastest Speed 34 | 50 160 152 34 34 50 Average Speed 127 | 148 160 160 150 83 118 Slowest Speed 240 | 160 160 240 170 190 120 Overloaded Moves . | . . . . . . Propulsion Burnouts . | . . . . . . Robots Hopped 3 | . . . . 3 . Potential Cave-ins . | . . . . . . Cave-ins Triggered . | . . . . . . Exploration Rate (%) 31 | 5 25 33 74 23 27 Regions Visited 5 Branch Regions 3 Pre-discovered Areas 2 | . . 2 . . . Known Exits Taken . | . . . . . . Unknown Exits Taken 5 | 1 1 1 1 1 . Scrap Searched 6 | . . 2 4 . . Spaces Dug 8 | . . . . 8 . Terrain Destroyed 20 | . . . . 20 . Melee 8 | . . . . 8 . Projectile 1 | . . . . 1 . AOE 11 | . . . . 11 . Terrain Rammed . | . . . . . . Walls Destroyed . | . . . . . . Machines Disabled . | . . . . . . Actions | -11 -10 -10 -8 -6 -6 --------- Run | Yrd Mat Sub Scr Fac Ext Total 4042 | 70 155 592 1629 1343 253 Wait 848 | . . 85 562 197 4 Move 2911 | 56 134 482 1043 990 206 Hop 3 | . . . . 3 . Pick Up 16 | 1 5 2 2 1 5 Fast Attach 53 | 7 3 3 5 25 10 Attach 16 | . . 2 4 5 5 Detach 8 | . . 2 1 5 . Swap 3 | . . . . 3 . Drop 26 | . 3 1 12 8 2 Fire 56 | 6 10 15 . 25 . Melee 45 | . . . . 34 11 Ram 2 | . . . . 2 . Kick . | . . . . . . Crush . | . . . . . . Escape Stasis 45 | . . . . 45 . Rewire 10 | . . . . . 10 Trap . | . . . . . . Miscellaneous . | . . . . . . Route ------- -11/Scrapyard -10/Materials (discovered 3 exits: [*Min x2] / *Sub) -10/Subcaves (discovered 3 exits: Rec / *Scr x2) -8/Scraptown (discovered 2 exits: *Fac x2) -6/Factory (discovered 2 exits: [*Fac] / [*Ext]) -6/Extension History --------- Turn | Location | Event 17 | -11/Scrapyard | Discovered new exit (range 15) 114 | -11/Scrapyard | Entered Materials 115 | -10/Materials | Met a group of wandering Federalists 202 | -10/Materials | Discovered new exit (range 8) 250 | -10/Materials | Discovered new exit (range 16) 317 | -10/Materials | Build established: Mutant 355 | -10/Materials | Discovered new exit (range 8) 366 | -10/Materials | Entered Subcaves 367 | -10/Subcaves | Continued accompanying wandering Federalists (5) 367 | -10/Subcaves | Approached by a straggling Scientist 402 | -10/Subcaves | Visited Clippyterm 406 | -10/Subcaves | Identified exit to Recycling 586 | -10/Subcaves | Learned location of Zion (-6) 586 | -10/Subcaves | Met a Zionite searching for "candidates" 778 | -10/Subcaves | Visited 4L-MR0's lab 787 | -10/Subcaves | Found Prototype Device 787 | -10/Subcaves | Identified Sfc. Transmogrifier 798 | -10/Subcaves | Found Meta Core 799 | -10/Subcaves | Attached Meta Core, gained temporary slots: Propulsion, Utility, Weapon 1168 | -10/Subcaves | Learned location of Storage (-8) 1238 | -10/Subcaves | Learned Materials emergency access door positions 1241 | -10/Subcaves | A swath of the cavern ceiling suddenly collapsed 1275 | -10/Subcaves | Entered Scraptown 1463 | -8/Scraptown | Visited Cyclists 1816 | -8/Scraptown | Discovered new exit (range 4) 1938 | -8/Scraptown | Visited SPCMW 1994 | -8/Scraptown | Visited UFD Registry 1994 | -8/Scraptown | Registered with UFD as "Shortranger" 2018 | -8/Scraptown | Visited Fellowship of the Rings 2062 | -8/Scraptown | Entered Cyclist Reading Room 2229 | -8/Scraptown | Heard Great Nut preacher, LISTEN AND RECITE! 2392 | -8/Scraptown | Visited Observation Area 2465 | -8/Scraptown | Visited Abandonware Association 2482 | -8/Scraptown | Learned abandonware demo "REVENGE.EXE" 2519 | -8/Scraptown | Visited Supply Room 2662 | -8/Scraptown | Visited Science Guys 2714 | -8/Scraptown | Visited Research Penetration Think Tank 2751 | -8/Scraptown | Visited A0-MCA Data Center 2761 | -8/Scraptown | Given a B- rating by A0-MCA 2769 | -8/Scraptown | Found A0-MCA's Component Scanner 2825 | -8/Scraptown | Discovered new exit (range 5) 2943 | -8/Scraptown | Visited Analyses Database 2985 | -8/Scraptown | Visited Junk Cannon Lab 2997 | -8/Scraptown | Found Prototype Special Weapon 2997 | -8/Scraptown | Identified Junk Cannon 3038 | -8/Scraptown | Visited Sword Containment 3057 | -8/Scraptown | Found Prototype Slashing Weapon 3057 | -8/Scraptown | Identified Companion Sword 3429 | -8/Scraptown | Entered Factory 3429 | -6/Factory | Evolved 8 slots: Propulsion x3, Utility x5 3678 | -6/Factory | Allied Derelicts emerged from ambush trap array 3712 | -6/Factory | P-60 Hacker assimilated allied 3X-LY1(g) 4161 | -6/Factory | Discovered new exit (range 6) 4311 | -6/Factory | Build established: Scavenger-Mutant 4412 | -6/Factory | Discovered new exit (range 5) 4637 | -6/Factory | Cargo convoy interrupted 4650 | -6/Factory | Released all parts (11) 4675 | -6/Factory | Core integrity fell below 50% 4708 | -6/Factory | Entered Extension 4729 | -6/Extension | Core integrity fell below 20% 4835 | -6/Extension | Lost 3 allies 5013 | -6/Extension | Spotted B-75 Beast 5019 | -6/Extension | Spotted B-75 Beast 5020 | -6/Extension | Self-destructed Last Messages --------------- 04869_ Acquired Hvy. Laser. 04871_ 9U,8URBEY,F3HK